Cogmind - Beta 10.2 @@@ ROGUE MODE // 2021.02.28 @ 17:56:40 Player: Cookedpoo Result: Destroyed by as-15029 with Assembled Blade Performance ------------- Evolutions (0) 0 Regions Visited (4) 800 Robots Destroyed (44) 220 Value Destroyed (834) 834 Prototype IDs (2) 40 Alien Tech Used (0) 0 Bonus (0) 0 TOTAL SCORE: 1894 Bonus ------- None Cogmind --------- Core Integrity 0/250 Matter 282/300 Energy 125/125 System Corruption 0% Temperature Cool (0) Movement Treading (200) Ox2 Location -9/Mines Parts ------- > --- POWER (1) -------- Light Ion Engine > --- PROPULSION (2) --- Light Treads Improved Aluminum Leg > --- UTILITY (2) ------ Large Storage Unit High-capacity Storage Unit > --- WEAPON (2) ------- Autogun Autogun > --- INVENTORY (18) --- Light Treads Light Treads Large Storage Unit Large Storage Unit Large Storage Unit Large Storage Unit Large Storage Unit Experimental Sensor Array Improved Signal Interpreter Weapon Shielding Hacking Suite Spread Laser Heavy Assault Rifle Light Cannon Light Cannon Grenade Launcher Grenade Launcher Peak State ------------ > --- POWER ------------ Ion Engine > --- PROPULSION ------- Improved Aluminum Leg Improved Aluminum Leg > --- UTILITY ---------- Large Storage Unit High-capacity Storage Unit > --- WEAPON ----------- Autogun Autogun > --- INVENTORY -------- Light Treads Light Treads Improved Aluminum Leg Improved Aluminum Leg Large Storage Unit Large Storage Unit Experimental Sensor Array Improved Signal Interpreter Weapon Shielding Hacking Suite Assault Rifle Assault Rifle Autogun Autogun Light Cannon Light Cannon Grenade Launcher Grenade Launcher [Rating: 14] Favorites ----------- Power Light Ion Engine Engine Light Ion Engine Propulsion Improved Aluminum Leg Treads Light Treads Leg Improved Aluminum Leg Wheel Wheel Utility Large Storage Unit Storage Large Storage Unit Processor Improved Targeting Computer Weapon Autogun Ballistic Gun Autogun Launcher Grenade Launcher Build | -11 -10 -10 -10 -9 ------- Run | Scr Mat Min Exi Min Slots Evolved . | . . . . . Power . | . . . . . Propulsion . | . . . . . Utility . | . . . . . Weapon . | . . . . . Parts Attached 25 | 6 9 5 1 4 Power 4 | 1 1 2 . . Engine 4 | 1 1 2 . . Core . | . . . . . Reactor . | . . . . . Propulsion 9 | 2 3 . . 4 Treads 3 | 1 . . . 2 Leg 5 | . 3 . . 2 Wheel 1 | 1 . . . . Hover . | . . . . . Flight . | . . . . . Utility 4 | 1 3 . . . Device . | . . . . . Storage 3 | 1 2 . . . Processor 1 | . 1 . . . Hackware . | . . . . . Protection . | . . . . . Artifact . | . . . . . Weapon 8 | 2 2 3 1 . Energy Gun . | . . . . . Energy Cannon . | . . . . . Ballistic Gun 7 | 2 2 2 1 . Ballistic Cannon . | . . . . . Launcher 1 | . . 1 . . Special Weapon . | . . . . . Impact Weapon . | . . . . . Slashing Weapon . | . . . . . Piercing Weapon . | . . . . . Special Melee Weapon . | . . . . . Unidentified Prototypes . | . . . . . Parts Lost 4 | . . 2 . 2 Power 1 | . . 1 . . Propulsion 2 | . . . . 2 Utility . | . . . . . Weapon 1 | . . 1 . . Highest Loss Streak 2 | . . 1 . 2 Average Slot Usage (%) 99 | . 98 99 100 99 Engine 13 | . 14 13 14 14 Leg 27 | . 27 28 28 26 Storage 26 | . 25 28 28 28 Ballistic Gun 27 | . 27 27 28 28 Naked Turns . | . . . . . Heaviest Build 59 | 10 59 59 57 57 Greatest Support 26 | 10 26 26 26 26 Greatest Overweight (x) 4 | . 2 2 2 4 Average Overweight (x) 1 | . 1 2 2 2 Largest Inventory Capacity 18 | 6 18 18 18 18 Average Capacity 17 | 5 16 18 18 18 Most Carried 18 | 5 18 18 18 18 Average Carried 16 | 3 14 17 17 17 Final Capacity 18 | 6 18 18 18 18 Final Carried 18 | 4 18 18 18 17 Class Distribution -------------------- 100% | Mutant Dominant Class ---------------- Mutant | -10/Materials Mutant | -10/Mines Mutant | -10/Exiles Mutant | -9/Mines Resources | -11 -10 -10 -10 -9 ----------- Run | Scr Mat Min Exi Min Matter Collected 1264 | 258 556 308 . 142 Remotely . | . . . . . Salvage Created 1304 | 83 807 206 . 208 Parts 86 | 1 56 22 . 7 Haulers Intercepted 2 | . 2 . . . Recyclers Shooed 3 | . 1 2 . . Parts Field Recycled . | . . . . . Retrieved Matter . | . . . . . Parts Self-Destructed . | . . . . . Prevented . | . . . . . Kills | -11 -10 -10 -10 -9 ------- Run | Scr Mat Min Exi Min Combat Hostiles Destroyed 31 | . 17 11 . 3 Guns 28 | . 17 8 . 3 AOE 3 | . . 3 . . Classes Destroyed 9 | 1 5 3 . . Worker 2 | . . 2 . . Tunneler 2 | . . 2 . . Hauler 2 | . 2 . . . Recycler 3 | 1 1 . . 1 Operator 3 | . 3 . . . Watcher 2 | . 2 . . . Swarmer 15 | . 6 9 . . Grunt 15 | . 11 1 . 3 Assembled 1 | . . 1 . . Best Kill Streak 4 | 1 4 3 . 4 Combat Bots Only 3 | . 3 3 . 2 Max Kills in Single Turn 2 | 1 2 2 . 2 Gunslinging 1 | . 1 . . . Exploded 2 | . . 2 . . Melee . | . . . . . Uniques/NPCs Destroyed . | . . . . . Combat | -11 -10 -10 -10 -9 -------- Run | Scr Mat Min Exi Min Damage Taken 1279 | . 381 370 . 528 Core 279 | . 122 35 . 122 Absorbed by Shields . | . . . . . Core Remaining (%) 100 | 100 . . . . Volleys Fired 107 | 2 57 33 . 15 Largest 2 | 2 2 2 . 2 Hottest 46 | 40 46 46 . 46 Shots Fired 212 | 4 114 64 . 30 Gun 210 | 4 114 62 . 30 Cannon . | . . . . . Launcher 2 | . . 2 . . Special . | . . . . . Kinetic 210 | 4 114 62 . 30 Thermal . | . . . . . Explosive 2 | . . 2 . . Electromagnetic . | . . . . . Robot Hit Streak 16 | 1 14 16 . 6 Robot Miss Streak 5 | 1 4 5 . 2 Penetration Max . | . . . . . Secondary Targets 3 | . 2 1 . . Max Gunslinging Chain 1 | . 1 1 . . Shots Hit Robots 131 | 2 72 37 . 20 Core Hits 59 | 2 32 18 . 7 Critical Hits . | . . . . . Critical Kills . | . . . . . Critical Parts Destroyed . | . . . . . Melee Attacks . | . . . . . Impact . | . . . . . Slashing . | . . . . . Piercing . | . . . . . Sneak Attacks . | . . . . . Combat Hostiles . | . . . . . Follow-up Attacks . | . . . . . Damage Inflicted 2251 | 22 1101 879 . 249 Guns 2009 | 22 1101 637 . 249 Cannons . | . . . . . Explosions 242 | . . 242 . . Melee . | . . . . . Ramming . | . . . . . Kinetic 2009 | 22 1101 637 . 249 Thermal . | . . . . . Explosive 242 | . . 242 . . Electromagnetic . | . . . . . Impact . | . . . . . Slashing . | . . . . . Piercing . | . . . . . Highest Corruption . | . . . . . Average Corruption . | . . . . . Corruption Purged . | . . . . . Overload Shots . | . . . . . Overflow Damage 13 | . . 13 . . Projectiles . | . . . . . Explosions 13 | . . 13 . . Melee . | . . . . . Knockbacks . | . . . . . Impact . | . . . . . Kinetic . | . . . . . Secondary . | . . . . . Self-Inflicted Damage 66 | . . 66 . . Shots 2 | . . 2 . . Rammed . | . . . . . Targets Rammed . | . . . . . Kicked . | . . . . . Crushed . | . . . . . Highest Temperature 48 | . 24 30 . 48 Average Temperature 11 | . 7 8 . 25 Received Heat Transfer 294 | . 111 63 . 120 Siege Activations . | . . . . . Robots Corrupted . | . . . . . Combat Hostiles . | . . . . . Parts Fried . | . . . . . Impact Corruptions . | . . . . . Robots Melted . | . . . . . Combat Hostiles . | . . . . . Parts Melted . | . . . . . Heat Transferred . | . . . . . Parts Sabotaged . | . . . . . Parts Stolen . | . . . . . Parts Stripped . | . . . . . Power Chain Reactions . | . . . . . Missiles Intercepted . | . . . . . Alert | -11 -10 -10 -10 -9 ------- Run | Scr Mat Min Exi Min Peak Influence 329 | 5 329 145 . 80 Initial 120 | . 3 120 . . Average 109 | 1 169 86 . 34 Maximum Alert Level 1 | . 1 . . . Low Security (%) 77 | 100 46 100 . 100 Level 1 22 | . 53 . . . Level 2 . | . . . . . Level 3 . | . . . . . Level 4 . | . . . . . Level 5 . | . . . . . High Security . | . . . . . Max Security . | . . . . . Squads Dispatched 8 | . 8 . . . Investigation 5 | . 5 . . . Extermination . | . . . . . Reinforcement 3 | . 3 . . . Assault . | . . . . . Garrison . | . . . . . Intercept . | . . . . . Construction Impeded . | . . . . . Haulers Reinforced . | . . . . . Stealth | -11 -10 -10 -10 -9 --------- Run | Scr Mat Min Exi Min Distress Signals 1 | . 1 . . . Communications Jammed . | . . . . . Distress Signals . | . . . . . Times Spotted 61 | . 34 14 . 13 Peak Tracking Total 8 | . 3 3 . 8 Tactical Retreats 6 | . 2 3 . 1 Traps | -11 -10 -10 -10 -9 ------- Run | Scr Mat Min Exi Min Traps Triggered 4 | . 4 . . . Indirectly . | . . . . . Trap Hack Attempts . | . . . . . Triggered . | . . . . . Disarmed . | . . . . . Reprogrammed . | . . . . . Reused . | . . . . . Traps Extracted . | . . . . . Installed . | . . . . . Triggered 1 | . . . . 1 Machines | -11 -10 -10 -10 -9 ---------- Run | Scr Mat Min Exi Min Machines Disabled 3 | . 2 . . 1 Max in Single Turn 1 | . 1 . . 1 Machines Sabotaged . | . . . . . Garrisons Compromised . | . . . . . Overloaded Fab Kills . | . . . . . Fab Network Shutdowns . | . . . . . Hacking | -11 -10 -10 -10 -9 --------- Run | Scr Mat Min Exi Min Machines Accessed 8 | . 7 . 1 . Terminals 4 | . 4 . . . Fabricators . | . . . . . Repair Stations 1 | . 1 . . . Recycling Units 2 | . 2 . . . Scanalyzers . | . . . . . Garrison Access . | . . . . . Total Hacks 26 | . 25 . 1 . Successful 18 | . 17 . 1 . Failed 7 | . 7 . . . Catastrophic . | . . . . . Database Lockouts 1 | . 1 . . . Manual 17 | . 17 . . . Terminals 18 | . 18 . . . Fabricators . | . . . . . Repair Stations 3 | . 3 . . . Recycling Units 4 | . 4 . . . Scanalyzers . | . . . . . Garrison Access . | . . . . . Terminal Hacks 6 | . 5 . 1 . Record 1 | . . . 1 . Part Schematic 1 | . 1 . . . Robot Analysis 2 | . 2 . . . Prototype ID Bank 1 | . 1 . . . Zone Layout 1 | . 1 . . . Fabricator Hacks . | . . . . . Repair Station Hacks 2 | . 2 . . . Scan Component 1 | . 1 . . . Repair 1 | . 1 . . . Recycling Unit Hacks 2 | . 2 . . . Retrieve Components 2 | . 2 . . . Scanalyzer . | . . . . . Garrison Access Hacks . | . . . . . Unauthorized Hacks 8 | . 8 . . . Terminals 6 | . 6 . . . Track 1 | . 1 . . . Botnet 3 | . 3 . . . Detonate 1 | . 1 . . . Operators 1 | . 1 . . . Fabricators . | . . . . . Repair Stations . | . . . . . Recycling Units 2 | . 2 . . . Tunnel 2 | . 2 . . . Scanalyzers . | . . . . . Garrison Access . | . . . . . Data Cores Recovered . | . . . . . Used . | . . . . . Hacking Detections 6 | . 6 . . . Full Trace Events 1 | . 1 . . . Feedback Events . | . . . . . Feedback Blocked . | . . . . . Robot Schematics Acquired . | . . . . . Robots Built . | . . . . . Matter . | . . . . . Time . | . . . . . Total Robot Build Rating . | . . . . . Part Schematics Acquired 1 | . 1 . . . Parts Built . | . . . . . Matter . | . . . . . Time . | . . . . . Total Part Build Rating . | . . . . . Parts Repaired 1 | . 1 . . . Time 32 | . 32 . . . Parts Recycled . | . . . . . Recycled Matter . | . . . . . Retrieved Matter . | . . . . . Retrieved Components 12 | . 12 . . . Parts Scanalyzed . | . . . . . Part Schematics Acquired . | . . . . . Parts Damaged . | . . . . . Bothacking | -11 -10 -10 -10 -9 ------------ Run | Scr Mat Min Exi Min Used RIF Installer . | . . . . . Robots Hacked . | . . . . . Non-combat . | . . . . . Combat . | . . . . . Robot Hacks Applied . | . . . . . Relay Couplers Released . | . . . . . Robots Rewired . | . . . . . Allies Hacked . | . . . . . Hacks Repelled . | . . . . . Allies | -11 -10 -10 -10 -9 -------- Run | Scr Mat Min Exi Min Total Allies 1 | . . 1 . . Largest Group 1 | . . 1 1 . Highest-Rated Group 31 | . . 31 31 . Highest-Rated Ally 31 | . . 31 31 . Total Orders . | . . . . . Ally Attacks . | . . . . . Total Damage . | . . . . . Kills . | . . . . . Allies Corrupted . | . . . . . Allies Melted . | . . . . . Intel | -11 -10 -10 -10 -9 ------- Run | Scr Mat Min Exi Min Robot Analysis Total 2 | . 2 . . . Derelict Logs Recovered 2 | . . 1 . 1 Drone Launches . | . . . . . Drone Recoveries . | . . . . . Exploration | -11 -10 -10 -10 -9 ------------- Run | Scr Mat Min Exi Min Turns Passed 4040 | 82 1510 1420 393 635 Spaces Moved 2051 | 79 747 691 216 318 Core 4 | 4 . . . . Treads 5 | . . . . 5 Legs 1963 | . 743 691 216 313 Wheels 79 | 75 4 . . . Hover . | . . . . . Flight . | . . . . . Fastest Speed 50 | 50 80 180 180 180 Average Speed 170 | 78 164 180 180 180 Slowest Speed 240 | 80 180 180 180 240 Overloaded Moves . | . . . . . Propulsion Burnouts . | . . . . . Robots Hopped . | . . . . . Cave-ins Triggered . | . . . . . Exploration Rate (%) 63 | 4 99 91 59 65 Regions Visited 4 Branch Regions 3 Pre-discovered Areas 3 | . 2 . 1 . Known Exits Taken . | . . . . . Unknown Exits Taken 4 | 1 1 1 1 . Scrap Searched 4 | . . 1 . 3 Spaces Dug 11 | . . 11 . . Terrain Destroyed 22 | . . 22 . . Melee . | . . . . . Projectile . | . . . . . AOE 22 | . . 22 . . Terrain Rammed . | . . . . . Walls Destroyed . | . . . . . Machines Disabled . | . . . . . Actions | -11 -10 -10 -10 -9 --------- Run | Scr Mat Min Exi Min Total 2422 | 92 937 816 222 355 Wait 193 | 1 95 82 . 15 Move 2047 | 78 746 690 215 318 Hop . | . . . . . Pick Up 30 | 5 17 3 3 2 Fast Attach 13 | 5 7 1 . . Attach 7 | 1 . 1 1 4 Detach 5 | . 4 . . 1 Swap 5 | . 2 3 . . Drop 15 | . 9 3 3 . Fire 107 | 2 57 33 . 15 Melee . | . . . . . Ram . | . . . . . Kick . | . . . . . Crush . | . . . . . Escape Stasis . | . . . . . Rewire . | . . . . . Trap . | . . . . . Miscellaneous . | . . . . . Route ------- -11/Scrapyard -10/Materials (discovered 4 exits: [*Mat x3] / [*Min]) -10/Mines (discovered 3 exits: [*Mat x2] / *Exi) -10/Exiles (discovered 2 exits: [*Min x2]) -9/Mines (discovered 1 exit: [*Mat]) History --------- Turn | Location | Event 10 | -11/Scrapyard | Discovered new exit (range 15) 83 | -11/Scrapyard | Entered Materials 249 | -10/Materials | Central database locked down 305 | -10/Materials | Build established: Mutant 381 | -10/Materials | Discovered new exit (range 15) 480 | -10/Materials | Discovered new exit (range 16) 1004 | -10/Materials | Discovered new exit (range 11) 1111 | -10/Materials | Discovered new exit (range 15) 1250 | -10/Materials | Repaired Imp. Aluminum Leg 1593 | -10/Materials | Entered Mines 1672 | -10/Mines | YI-UF0 nonchalantly dropped a Grenade Launcher on the ground 1756 | -10/Mines | Discovered new exit (range 16) 2237 | -10/Mines | Found a damaged Exp. Sensor Array with a note attached 2241 | -10/Mines | Found Prototype Device 2295 | -10/Mines | Excavation squad dispatched 2295 | -10/Mines | A large section of the Mines collapsed 2343 | -10/Mines | Core integrity fell below 50% 2440 | -10/Mines | Learned Materials trap positions 2472 | -10/Mines | Deemed a non-threat by the Exiles lab entrance 2492 | -10/Mines | Discovered new exit (range 9) 2752 | -10/Mines | Received a Mining Laser from a helpful Derelict 3001 | -10/Mines | Discovered new exit (range 5) 3013 | -10/Mines | Entered Exiles 3013 | -10/Exiles | Accompanied by 1 ally 3037 | -10/Exiles | Discovered new exit (range 15) 3062 | -10/Exiles | Met 8R-AWN 3089 | -10/Exiles | Met EX-HEX 3159 | -10/Exiles | Met EX-DEC 3168 | -10/Exiles | Learned location of Zion (-6) 3390 | -10/Exiles | Discovered new exit (range 11) 3406 | -10/Exiles | Entered Mines 3453 | -9/Mines | Learned 2 Materials zone layouts 3576 | -9/Mines | Discovered new exit (range 11) 3994 | -9/Mines | Assembled infested the area 3999 | -9/Mines | Assisted by a Guerilla fighting off Assembled 4012 | -9/Mines | Core integrity fell below 20% 4041 | -9/Mines | Destroyed by as-15029 with Assembled Blade Last Messages --------------- I've been tracking a group of Assembled to figure out where they're coming from, and they're closing on this area, come on!" 04005_ BU-6EQ(h): "I'll hold them off! Go on ahead or try to find another way!" 04006_ U-05 Engineer lays Concrete. 04007_ D-53 Grenadier suffers critical hit. 04007_ U-05 Engineer destroyed. 04007_ D-53 Grenadier destroyed. 04010_ The unstable cave ceiling collapses. 04011_ BU-6EQ(h) destroyed. 04014_ Laser Drill disabled. 04014_ as-63741 destroyed. 04017_ as-09536 destroyed. 04017_ as-28657 destroyed. 04018_ The unstable cave ceiling collapses. 04019_ as-55615 destroyed. 04019_ as-69163 destroyed. 04021_ D-53 Grenadier destroyed. 04022_ The unstable cave ceiling collapses. 04027_ Imp. Aluminum Leg severed. Map ----- +----------------------------------------------------+ | | | | | | | | | | | ?????????????????????????????????????????? | | ?????????????????????????????????????????? | | ?????????????????????????????????????????? | | ?????????????????????????????????????????? | | ?????????###????#####????????????????????? | | ???????### ##### ##???????????????????? | | ???????# ##???????????#####??? | | ???????# ##?????????## #??? | | ??????## #?????????# #??? | | ?????## # #??????????# #??? | | ?????# % # ##?????????# #??? | | ? #####?????# ##?? | | ####### " % | #?????# #?? | | ??????## %! #????## #?? | | ???????## ##### #### ###### ##?? | | ????????## ##???## ##### ## ####??? | | ?????????####?????# ### ##?????? | | ??????????????????# ## ##??????? | | ????????????????### ### ##???????? | | ???????????????## =#### ##????????? | | ???????????????# a a@ #?????????? | | ???????????????# < ##????????? | | ??????????????## ####t ##???????? | | ###??????????## """" ##?# #???????? | | ##?????????# """" #?## #???????? | | #?????????# " "" #??## #???????? | | #?????????# % % ##???## ##???????? | | ##????????## ####?????# ##????????? | | #????????## ##????????# #?????????? | | ########## ##???????## #######???? | | # ##??????# ## ##??? | | [% #??????# ##?? | | #### ## #?????# #?? | | ##??# #### ###?????## #?? | | ###???# #??# #????????## ##?? | | ##?????## ##??# #?????????###### ##??? | | ##???????## #???# #??????????????# ##???? | | #?????????# #???# #??????????????# #????? | | ??######### #???# #??????????????# #????? | | ## ## #???# ################ #????? | | # ## ## ##### #????? | | ?# # ## ## ##################????? | | ?## # #### ## #?????????????????????? | | # # # ### ## #?????????????????????? | | # # ## ## /##????????????????????? | +----------------------------------------------------+ Best States ------------- Heat Dissipation 25 Energy Generation 10 Energy Capacity 250 Matter Stores 300 Matter Capacity 300 Sight Range 16 Terrain Scan Density 10 Evasion (%) 44 Targeting Accuracy 6 Recoil Reduction 1 Item Schematics ----------------- Hcp. Storage Unit | -10/Materials | Hacked Robot Schematics ------------------ None Fabricated ------------ Nothing Alien Tech Used ----------------- None Achievements -------------- None Challenges ------------ None Game ------ Seed SurgeVortexStabilizer Manual? 0 Play Time 00:21:49 Cumulative 113.4 hours Start 2021.02.28 @ 17:35:54 End 2021.02.28 @ 17:56:40 Sessions 1 Manual Loads 0 Difficulty Rogue Special Mode None Game No. 102 Rogue 102 Adventurer 0 Explorer 0 Win Type - Total 2 Types 2/0/0/0/0/0/0/0/0 Lore% 59 Gallery% 61 Achievement% 48 Wizard Run 0 Options --------- ASCII 1 Keyboard 1 Movement Arrows Keybinds 0 Fullscreen 2 Font 18/TerminusBold Map View 76x50 Tactical HUD 1 Map Filters NONE Filters NONE Steam 1 RUN: b81723b2-2f9e-42ba-98ad-24a85938e362